bitfinex/quotes_ETHUSD_20240902
["timestamp","ask_amount","ask_price","bid_price","bid_amount"]
[1725278708959,3.956,2527.8,2527.7,4.12903]
[1725278709923,3.95596,2527.9,2527.7,4.12903]
[1725278710260,7.91196,2527.9,2527.7,4.12903]
[1725278710499,3.95596,2527.9,2527.8,11.87333]
[1725278710698,3.95596,2527.9,2527.8,25.778796]
[1725278711842,7.9119,2527.9,2527.8,14.87333]
[1725278712649,11.86784,2527.9,2527.8,14.87333]
[1725278713036,7.91188,2527.9,2527.8,14.87333]
[1725278715564,11.86782,2527.9,2527.8,14.87333]
[1725278718595,15.82376,2527.9,2527.8,14.87333]
[1725278718904,15.82376,2527.9,2527.8,11.87333]
[1725278718905,17.406106,2527.9,2527.8,11.87333]
[1725278719450,13.450166,2527.9,2527.8,11.87333]
[1725278719893,7.91294,2527.5,2527.4,11.87333]
[1725278720048,7.91294,2527.5,2527.4,14.87333]
[1725278720251,3.95647,2527.5,2527.4,14.87333]
[1725278720747,3.95647,2527.5,2527.4,23.98563]
[1725278720992,3.95611,2527.8,2527.4,23.98563]
[1725278721157,3.95611,2527.8,2527.5,6.21868215]
[1725278721364,3.95625,2527.7,2527.5,6.21868215]
[1725278721678,3.95625,2527.7,2527.6,9.1394]
[1725278721885,3.95625,2527.7,2527.6,12.1394]
[1725278722079,3.95625,2527.7,2527.6,15.1546293]
[1725278722999,7.9125,2527.7,2527.6,12.1394]
[1725278723597,7.9125,2527.7,2527.6,3.0]
[1725278723768,12.14566459,2527.7,2527.6,3.0]
[1725278725864,12.14566459,2527.7,2527.6,14.87333]
[1725278726695,7.9125,2527.7,2527.6,14.87333]
[1725278726857,12.14566459,2527.7,2527.6,14.87333]
[1725278728586,8.18941459,2527.7,2527.6,15.66769976]
[1725278729610,12.14566459,2527.7,2527.6,15.66769976]
[1725278730469,12.14566459,2527.7,2527.6,14.87333]
[1725278733583,3.95625,2527.7,2527.6,23.49063]
[1725278735819,12.14566459,2527.7,2527.6,23.49063]
[1725278735973,9.67609771,2527.7,2527.6,14.87333]
[1725278736674,7.9125,2527.7,2527.6,14.87333]
[1725278736898,7.9125,2527.7,2527.6,17.54178937]
[1725278736899,9.67609771,2527.7,2527.6,17.54178937]
[1725278740515,9.67609771,2527.7,2527.6,26.25748937]
[1725278741284,9.67609771,2527.7,2527.6,27.50217383]
[1725278746384,9.67609771,2527.7,2527.6,24.83371446]
[1725278746993,5.71984771,2527.7,2527.6,24.83371446]
[1725278750583,5.71984771,2527.7,2527.6,23.58903]
[1725278750783,5.71984771,2527.7,2527.6,24.83740483]
[1725278751120,5.71975771,2527.7,2527.6,25.24860928]
[1725278751329,9.67591771,2527.7,2527.6,16.12168943]
[1725278751838,9.67591771,2527.7,2527.6,16.1218539]
[1725278762160,13.63207771,2527.7,2527.6,16.1218539]
[1725278762372,13.63207771,2527.7,2527.6,14.87333]
[1725278764444,9.67591771,2527.7,2527.6,16.1218539]
[1725278764871,9.67591771,2527.7,2527.6,14.87333]
[1725278765429,9.67591771,2527.7,2527.6,16.1218539]
[1725278766238,9.67591771,2527.7,2527.6,16.53290928]
[1725278766438,9.67591771,2527.7,2527.6,16.12217859]
[1725278767427,9.67591771,2527.7,2527.6,25.05197859]
[1725278767655,5.71975771,2527.7,2527.6,25.46270928]
[1725278767845,9.67591771,2527.7,2527.6,25.46270928]
[1725278768054,9.67591771,2527.7,2527.6,23.80313]
[1725278768242,9.67591771,2527.7,2527.6,25.46270928]
[1725278768443,5.71975771,2527.7,2527.6,25.46270928]
[1725278768655,5.51975771,2527.7,2527.6,25.46270928]
[1725278769654,5.51975771,2527.7,2527.6,26.33014354]
[1725278770776,1.76359771,2527.7,2527.6,26.33564732]
[1725278771481,1.76359771,2527.7,2527.6,24.67056426]
[1725278772279,1.76359771,2527.7,2527.6,26.33560473]
[1725278772474,1.76359771,2527.7,2527.6,24.67056426]
[1725278773340,1.76359771,2527.7,2527.6,26.33556127]
[1725278773533,1.76359771,2527.7,2527.6,24.67056426]
[1725278776399,3.95596,2527.9,2527.7,8.9143]
[1725278776554,5.71955771,2527.9,2527.8,3.0]
[1725278777393,3.95616,2527.7,2527.6,13.1220466]
[1725278777597,11.52317348,2527.7,2527.2,1.2487166]
[1725278777797,11.52317348,2527.7,2527.1,7.52302986]
[1725278777798,3.95694,2527.2,2527.1,7.10684944]
[1725278777967,3.95694,2527.2,2527.1,7.52302986]
[1725278778297,7.91388,2527.2,2527.1,7.10724411]
[1725278778794,1.76359771,2527.3,2527.1,7.10724411]
[1725278778795,5.72039771,2527.3,2527.1,7.10724411]
[1725278778972,3.95664,2527.4,2527.2,1.24844204]
[1725278779172,5.72023771,2527.4,2527.3,9.51634204]
[1725278779575,5.72023771,2527.4,2527.3,12.51634204]
[1725278781363,5.72023771,2527.4,2527.3,4.24844204]
[1725278781364,9.67687771,2527.4,2527.3,4.24844204]
[1725278781866,11.04020648,2527.4,2527.3,4.24844204]
[1725278782070,11.04020648,2527.4,2527.3,3.0]
[1725278782294,11.04020648,2527.4,2527.2,1.24844204]
[1725278782295,7.91358,2527.3,2527.2,4.24844204]
[1725278782496,7.91388,2527.2,2527.1,4.24844204]
[1725278782699,9.67747771,2527.2,2527.1,3.0]
[1725278783698,3.9571,2527.1,2527.0,4.24772037]
[1725278783906,3.9571,2527.1,2527.0,3.0]
[1725278784076,3.95726,2527.0,2526.9,4.66489702]
[1725278784280,5.72085771,2527.0,2526.9,24.45489702]
[1725278785161,9.67811771,2527.0,2526.9,4.24755777]
[1725278786168,9.67811771,2527.0,2526.9,3.0]
[1725278786363,9.67811771,2527.0,2526.9,4.24755777]
[1725278787574,7.91452,2527.0,2526.9,4.24755777]
[1725278788002,7.91452,2527.0,2526.9,3.0]
[1725278788200,7.91452,2527.0,2526.9,22.79]
[1725278789522,7.91452,2527.0,2526.9,24.03755777]
[1725278789915,7.91452,2527.0,2526.9,22.79]
[1725278794458,9.67811771,2527.0,2526.9,22.79]
[1725278795343,10.64592948,2527.0,2526.9,22.79]
[1725278795546,9.67811771,2527.0,2526.9,22.79]
[1725278799371,7.91452,2527.0,2526.9,22.79]
[1725278799694,9.67811771,2527.0,2526.9,22.79]
[1725278800189,9.67811771,2527.0,2526.9,3.0]
[1725278800344,9.67811771,2527.0,2526.8,3.0]
[1725278800345,3.95757,2526.9,2526.8,3.0]
[1725278800547,3.95757,2526.9,2526.8,15.55505578]
[1725278801087,3.95757,2526.9,2526.8,12.3046]
[1725278806128,3.95757,2526.9,2526.8,32.0946]
[1725278809843,3.95757,2526.9,2526.8,22.79]
[1725278812455,7.91514,2526.9,2526.8,22.79]
[1725278816220,11.87271,2526.9,2526.8,22.79]
[1725278816558,13.23634077,2526.9,2526.8,22.79]
[1725278816969,13.23634077,2526.9,2526.8,3.0]
[1725278817270,7.91514,2526.8,2526.7,3.0]
[1725278817452,9.67873771,2526.8,2526.7,3.0]
[1725278820608,13.63630771,2526.8,2526.7,3.0]
[1725278821294,13.63630771,2526.8,2526.6,3.0]
[1725278821295,11.87319,2526.7,2526.6,3.0]
[1725278821495,13.63678771,2526.7,2526.6,3.0]
[1725278822471,7.91546,2526.7,2526.6,12.0851]
[1725278822680,9.67905771,2526.7,2526.6,12.0851]
[1725278823016,3.95773,2526.7,2526.6,12.0851]
[1725278823157,3.95743,2526.9,2526.7,8.7921]
[1725278823512,9.67850771,2526.9,2526.8,3.0]
[1725278825166,9.67850771,2526.9,2526.8,11.6893]
[1725278827289,9.67850771,2526.9,2526.8,3.0]
[1725278827511,3.95757,2526.8,2526.7,3.0]
[1725278828982,7.91514,2526.8,2526.7,3.0]
[1725278830768,7.91514,2526.8,2526.7,4.24755777]
[1725278831288,7.91514,2526.8,2526.7,3.0]
[1725278832107,22.05112677,2526.8,2526.7,3.0]
[1725278832481,11.87319,2526.7,2526.6,19.79]
[1725278832677,13.63678771,2526.7,2526.6,22.79]
[1725278833007,16.41405116,2526.7,2526.6,3.0]
[1725278833213,11.87364,2526.6,2526.5,3.0]
[1725278833506,14.8842544,2526.6,2526.5,3.0]
[1725278834845,14.8842544,2526.6,2526.5,19.79]
[1725278839063,9.67935771,2526.6,2526.5,19.79]
[1725278840162,7.91576,2526.6,2526.5,19.79]
[1725278840662,9.67935771,2526.6,2526.5,28.301]
[1725278844231,9.67935771,2526.6,2526.5,19.79]
[1725278845676,3.95683,2527.3,2526.6,8.8454]
[1725278845826,1.76359771,2526.8,2526.6,8.8454]
[1725278846030,1.76359771,2526.8,2526.7,12.4087]
[1725278846243,1.76359771,2526.8,2526.7,16.212336]
[1725278847441,3.95727,2527.0,2526.7,16.212336]
[1725278847640,3.95722,2527.1,2526.8,9.2312]
[1725278847934,9.67800771,2527.1,2526.9,4.6034836]
[1725278848468,3.95726,2527.0,2526.9,4.6034836]
[1725278848668,3.95726,2527.0,2526.9,3.0]
[1725278851279,7.91452,2527.0,2526.9,3.0]
[1725278851487,3.95757,2526.8,2526.7,3.0]
[1725278851805,7.91576,2526.6,2526.5,19.79]
[1725278852011,9.67935771,2526.6,2526.5,19.79]
[1725278853610,9.67935771,2526.6,2526.5,22.79]
[1725278853770,13.63723771,2526.6,2526.5,22.79]
[1725278853966,15.08011128,2526.6,2526.5,22.79]
[1725278854168,15.08011128,2526.6,2526.5,19.79]
[1725278857317,28.64655463,2526.6,2526.5,19.79]
[1725278857481,7.91702,2526.2,2526.1,1.24755777]
[1725278857821,9.104557,2526.2,2526.1,1.24755777]
[1725278858110,11.87553,2526.2,2526.1,1.24755777]
[1725278860594,15.83404,2526.2,2526.1,1.24755777]
[1725278860794,23.77084,2526.2,2526.1,1.24755777]
[1725278864932,15.83404,2526.2,2526.1,1.24755777]
[1725278865115,11.87553,2526.2,2526.1,1.24755777]
[1725278865287,14.41953277,2526.2,2526.1,1.24755777]
[1725278866316,14.41953277,2526.2,2525.9,10.12579607]
[1725278866317,7.91764,2526.0,2525.9,8.0482]
[1725278866521,3.95945,2525.6,2525.5,19.79]
[1725278866694,5.72304771,2525.6,2525.5,19.79]
[1725278867236,5.72304771,2525.6,2525.5,27.5758]
[1725278870045,1.76359771,2525.6,2525.5,27.5758]
[1725278871700,3.95932,2525.7,2525.6,8.001]
[1725278872566,3.95921,2525.8,2525.6,8.001]
[1725278872765,9.68217771,2525.7,2525.6,8.001]
[1725278873249,7.9189,2525.6,2525.5,19.79]
[1725278876574,3.95945,2525.6,2525.5,27.4838]
[1725278877434,3.95945,2525.6,2525.5,7.6938]
[1725278882128,3.95925,2525.8,2525.5,7.6938]
[1725278882288,3.9593,2525.7,2525.5,8.46318]
[1725278882613,5.72289771,2525.7,2525.5,8.46318]
[1725278882815,5.72289771,2525.7,2525.5,7.6938]
[1725278883378,5.72289771,2525.7,2525.5,27.4838]
[1725278883682,5.72289771,2525.7,2525.6,7.356]
[1725278885068,1.76359771,2525.7,2525.6,7.356]
[1725278885269,3.95839,2526.3,2525.8,7.7396]
[1725278885474,3.95839,2526.3,2525.5,19.79]
[1725278885475,9.68042771,2526.3,2526.0,7.7396]
[1725278885721,5.72198771,2526.3,2526.0,7.7396]
[1725278886325,9.68045771,2526.3,2526.0,7.7396]
[1725278886481,9.68045771,2526.3,2526.1,3.0]
[1725278886877,3.95851,2526.2,2526.1,3.0]
[1725278888706,5.72195771,2526.3,2526.1,3.0]
[1725278888921,3.9582,2526.4,2526.2,7.7501]
[1725278889222,5.72159771,2526.6,2526.2,7.7501]
[1725278889433,1.76359771,2526.4,2526.2,27.5401]
[1725278890718,1.76359771,2526.4,2526.2,30.989965]
[1725278890892,1.76359771,2526.4,2526.3,30.2612]
[1725278891424,1.76359771,2526.6,2526.4,7.4712]
[1725278891587,5.72149771,2526.6,2526.5,3.0]
[1725278892310,1.76359771,2526.6,2526.5,3.0]
[1725278892479,1.76359771,2526.6,2526.5,10.8621]
[1725278893681,3.95705,2527.2,2526.5,14.323145]
[1725278894018,3.95705,2527.2,2526.6,19.79]
[1725278894019,1.76359771,2526.7,2526.6,19.79]
[1725278894224,1.76359771,2526.7,2526.6,22.79]
[1725278896465,9.67905771,2526.7,2526.6,22.79]
[1725278896830,14.60469348,2526.7,2526.6,22.79]
[1725278898326,14.60469348,2526.7,2526.6,3.0]
[1725278898525,14.60469348,2526.7,2526.4,3.0]
[1725278898526,3.9581,2526.5,2526.4,3.0]
[1725278898757,5.72169771,2526.5,2526.4,3.0]
[1725278899778,9.67979771,2526.5,2526.4,3.0]
[1725278901537,3.95718,2527.1,2526.6,3.95781]
[1725278901746,3.95679,2527.3,2526.8,7.5508]
[1725278901747,3.95703,2527.2,2526.8,7.5508]
[1725278902056,3.95711,2527.1,2526.8,7.5508]
[1725278902387,1.76359771,2527.2,2526.7,19.79]
[1725278902388,7.91514,2526.8,2526.7,19.79]
[1725278902602,9.67873771,2526.8,2526.7,22.79]
[1725278907202,9.67873771,2526.8,2526.7,3.0]
[1725278907403,3.95773,2526.7,2526.5,3.0]
[1725278907579,1.76359771,2526.6,2526.5,3.0]
[1725278908206,5.72117771,2526.8,2526.5,10.8679]
[1725278909157,1.76359771,2526.8,2526.5,10.8679]
[1725278909596,1.76359771,2526.8,2526.5,14.82586]
[1725278910652,1.76359771,2526.8,2526.6,7.4405]
[1725278910811,1.76359771,2526.8,2526.7,3.0]
[1725278919744,1.76359771,2526.8,2526.6,27.2305]
[1725278919745,7.91546,2526.7,2526.6,19.79]
[1725278919931,20.92469577,2526.7,2526.6,19.79]
[1725278922582,20.92469577,2526.7,2525.7,1.24755777]
[1725278922583,7.4125,2526.3,2525.7,1.24755777]
[1725278922744,7.4125,2526.3,2525.6,9.35979702]
[1725278922745,3.95929,2525.7,2525.6,7.6949]
[1725278924273,3.95966,2525.5,2525.3,7.5688]
[1725278925866,3.95976,2525.4,2525.3,10.5688]
[1725278932495,3.96023,2525.1,2525.0,8.0367]
[1725278932668,3.96065,2524.9,2524.7,7.7847]
[1725278932994,3.9607,2524.8,2524.7,7.7847]
[1725278933994,3.9607,2524.8,2524.7,10.7847]
[1725278935254,3.96055,2524.9,2524.7,10.7847]
[1725278935455,3.96055,2524.9,2524.8,3.0]
[1725278937761,3.96118,2524.5,2524.1,7.8594]
[1725278937988,8.20275148,2524.5,2524.1,7.8594]
[1725278938162,12.16401148,2524.5,2524.1,9.43771]
[1725278938386,8.20275148,2524.5,2524.1,9.43771]
[1725278938790,8.20314148,2524.3,2524.1,7.8594]
[1725278939022,3.96165,2524.2,2524.1,7.8594]
[1725278939175,4.24151148,2524.3,2523.5,7.8919]
[1725278939176,3.96239,2523.8,2523.5,7.8919]
[1725278939351,3.96239,2523.8,2523.6,4.0]
[1725278939352,3.96243,2523.7,2523.6,4.0]
[1725278939552,3.96259,2523.6,2523.5,7.8919]
[1725278941017,3.96301,2523.4,2523.1,27.1353]
[1725278941170,7.92541,2523.6,2523.1,27.1353]
[1725278941354,3.96275,2523.5,2523.1,27.1353]
[1725278941693,3.96275,2523.5,2523.1,30.641556]
[1725278942297,3.96269,2523.6,2523.1,30.641556]
[1725278942510,7.92542,2523.6,2523.1,30.641556]
[1725278942792,3.96269,2523.6,2523.1,30.641556]
[1725278943005,3.96269,2523.6,2523.2,3.0]
[1725278943177,3.96291,2523.4,2523.2,3.0]
[1725278943356,8.20442148,2523.4,2523.2,3.0]
[1725278943594,8.20442148,2523.4,2522.9,19.79]
[1725278943823,4.24151148,2523.0,2522.8,7.8029]
[1725278944003,4.24151148,2523.0,2522.6,19.79]
[1725278944204,3.96416,2522.6,2522.5,7.8029]
[1725278944371,8.20566148,2522.7,2522.1,7.8029]
[1725278944705,12.16977148,2522.7,2522.1,10.958698]
[1725278944857,3.96418,2522.6,2522.1,10.958698]
[1725278945510,8.20564148,2522.7,2522.1,14.923628]
[1725278945658,3.96413,2522.7,2522.1,14.923628]
[1725278945854,3.96413,2522.7,2522.2,3.4713628]
[1725278946179,3.96413,2522.7,2522.3,3.0]
[1725278946180,7.92824,2522.7,2522.3,3.0]
[1725278946399,8.20562148,2522.7,2522.3,3.0]
[1725278946559,3.9642,2522.6,2522.3,3.0]
[1725278947415,3.96411,2522.7,2522.3,3.0]
[1725278947700,7.92825,2522.7,2522.3,3.0]
[1725278948500,3.96416,2522.6,2522.3,3.0]
[1725278949065,3.96411,2522.7,2522.3,3.0]
[1725278949271,3.96411,2522.7,2522.3,22.79]
[1725278949601,3.96424,2522.6,2522.3,22.79]
[1725278950628,3.96411,2522.7,2522.3,26.59291928]
[1725278950922,3.96411,2522.7,2522.4,7.7718]
[1725278951499,12.16914148,2522.9,2522.4,7.7718]
[1725278951899,3.96386,2522.8,2522.4,7.7718]
[1725278952111,3.96386,2522.8,2522.4,11.60473493]
[1725278952429,4.24151148,2523.1,2522.6,3.96413]
[1725278952582,8.20501148,2523.1,2522.5,4.04358785]
[1725278952781,8.20501148,2523.1,2522.5,7.41170228]
[1725278953124,8.20501148,2523.1,2522.6,7.8526]
[1725278953325,12.16851148,2523.1,2522.6,11.81674]
[1725278953481,3.9636,2523.0,2522.7,0.85534895]
[1725278953691,3.9637,2522.9,2522.6,7.8526]
[1725278954019,3.96354,2523.0,2522.6,7.8526]
[1725278954225,3.96354,2523.0,2522.6,9.37903223]
[1725278955213,3.96354,2523.0,2522.6,29.16903223]
[1725278955657,3.96354,2523.0,2522.6,33.13319223]
[1725278956462,3.96344,2523.1,2522.6,33.13319223]
[1725278956663,3.96344,2523.1,2522.7,3.65805945]
[1725278957064,3.96354,2523.0,2522.7,3.65805945]
[1725278957233,3.96354,2523.0,2522.6,33.13319223]
[1725278957560,7.92658,2523.2,2522.8,7.4381]
[1725278957721,3.96338,2523.1,2522.8,27.2281]
[1725278958624,3.96325,2523.2,2522.8,27.2281]
[1725278958850,7.92661,2523.2,2522.8,28.34464319]
[1725278959019,7.92661,2523.2,2522.8,32.30848319]
[1725278959020,3.96325,2523.2,2522.8,32.30848319]
[1725278959225,3.96307,2523.3,2522.8,32.30836319]
[1725278959537,3.96307,2523.3,2522.9,3.23083632]
[1725278961155,3.96302,2523.4,2523.0,11.54921]
[1725278962226,3.96276,2523.5,2523.1,27.3757]
[1725278962563,3.96276,2523.5,2523.1,34.39970363]
[1725278963151,7.92564,2523.5,2523.1,30.43635363]
[1725278963468,3.96276,2523.5,2523.1,34.39967363]
[1725278963671,3.96276,2523.5,2523.2,3.83631936]
[1725278963871,4.24151148,2523.9,2523.2,3.83631936]
[1725278964171,3.96301,2523.4,2523.2,19.79]
[1725278964369,7.92601,2523.4,2523.2,19.79]
[1725278964869,3.963,2523.4,2523.2,19.79]
[1725278965070,3.96306,2523.3,2523.2,19.79]
[1725278965277,3.96322,2523.2,2523.0,3.0]
[1725278965428,3.96337,2523.1,2522.9,27.3879]
[1725278967246,3.96337,2523.1,2522.9,7.5979]
[1725278967247,3.96353,2523.0,2522.9,7.5979]
[1725278967587,3.96353,2523.0,2522.9,10.5979]
[1725278968167,3.96329,2523.2,2522.9,10.5979]
[1725278968474,3.96318,2523.3,2522.9,13.63669]
[1725278968675,3.96318,2523.3,2522.9,17.60037]
[1725278969262,3.96318,2523.3,2523.0,0.42114093]
[1725278969575,3.96318,2523.3,2522.9,17.60037]
[1725278969773,3.96318,2523.3,2523.0,0.4211395]
[1725278970081,3.96318,2523.3,2522.9,17.60037]
[1725278970237,3.96318,2523.3,2523.0,0.42113354]
[1725278970436,3.96316,2523.3,2522.9,17.60037]
[1725278970682,3.96307,2523.3,2523.0,0.42113368]
[1725278970832,3.96307,2523.3,2522.9,14.56157]
[1725278971158,3.96307,2523.3,2523.0,0.42113378]
[1725278971372,3.96307,2523.3,2522.9,14.56157]
[1725278971738,3.96307,2523.3,2523.0,0.42113663]
[1725278971937,3.96307,2523.3,2522.9,14.56157]
[1725278973077,3.96307,2523.3,2523.0,19.79]
[1725278973781,3.96305,2523.4,2523.1,7.9252]
[1725278973782,3.96303,2523.4,2523.1,7.9252]
[1725278974096,3.96299,2523.4,2523.1,9.77597637]
[1725278974578,3.96313,2523.3,2523.1,9.77597637]
[1725278974784,3.96313,2523.3,2523.1,7.9252]
[1725278977091,3.96322,2523.2,2523.1,7.9252]
[1725278978141,3.96313,2523.3,2523.1,7.9252]
[1725278978344,3.96287,2523.5,2523.1,7.9252]
[1725278978345,3.96296,2523.4,2523.1,7.9252]
[1725278978842,3.96275,2523.5,2523.1,11.88856]
[1725278979054,7.92558,2523.5,2523.1,31.67856]
[1725278979259,7.9256,2523.5,2523.1,27.7152]
[1725278980400,3.96293,2523.4,2523.1,27.7152]
[1725278980963,3.96308,2523.3,2523.1,27.7152]
[1725278981371,3.96322,2523.2,2523.1,27.7152]
[1725278981583,7.92644,2523.2,2523.1,19.79]
[1725278984138,17.74427563,2523.2,2523.1,19.79]
[1725278985000,3.96384,2522.8,2522.7,7.8746]
[1725278985297,3.96369,2522.9,2522.7,12.12215777]
[1725278985452,3.96362,2523.0,2522.7,12.12215777]
[1725278985453,3.96362,2523.0,2522.7,9.12215777]
[1725278985606,3.96362,2523.0,2522.8,4.24755777]
[1725278986037,3.96362,2523.0,2522.8,3.0]
[1725278986918,3.96369,2522.9,2522.8,3.0]
[1725278987136,3.96384,2522.8,2522.7,7.8746]
[1725278990309,3.96373,2522.9,2522.7,7.8746]
[1725278990533,4.24151148,2523.0,2522.5,21.03755777]
[1725278990750,7.92832,2522.6,2522.5,19.79]
[1725278991066,3.96452,2522.4,2522.2,8.74685777]
[1725278991356,3.9645,2522.4,2522.2,27.2893]
[1725278991567,3.96432,2522.5,2522.2,27.2893]
[1725278992388,3.96455,2522.4,2522.2,27.2893]
[1725278992610,3.96455,2522.4,2522.3,3.0]
[1725278994672,7.92912,2522.4,2522.3,3.0]
[1725278996573,7.92912,2522.4,2522.2,27.2893]
[1725278996574,3.96463,2522.3,2522.2,27.2893]
[1725278996775,3.96463,2522.3,2522.2,10.4993]
[1725278997282,7.92926,2522.3,2522.2,3.0]
[1725278998030,3.96463,2522.3,2522.2,3.0]
[1725278999055,7.92926,2522.3,2522.2,3.0]
[1725278999268,3.96479,2522.2,2522.1,19.79]
[1725278999429,3.96494,2522.1,2522.0,7.9439]
[1725279000316,3.9651,2522.0,2521.9,19.79]
[1725279000990,3.9651,2522.0,2521.8,7.9767]
[1725279000991,4.24151148,2522.0,2521.8,19.79]
[1725279001193,4.24151148,2522.0,2521.3,7.9767]
[1725279001336,3.96612,2521.4,2521.3,7.9767]
[1725279001682,3.96574,2521.6,2521.3,7.9767]
[1725279001861,3.96561,2521.7,2521.3,8.77437]
[1725279002231,3.96575,2521.6,2521.3,8.77437]
[1725279002627,3.96561,2521.7,2521.3,8.77437]
[1725279002868,7.93131,2521.7,2521.3,8.77437]
[1725279003266,3.96561,2521.7,2521.3,8.77437]
[1725279003430,7.93128,2521.7,2521.3,8.77437]
[1725279003626,3.96561,2521.7,2521.3,8.77437]
[1725279003831,7.93127,2521.7,2521.3,8.77437]
[1725279004061,3.96561,2521.7,2521.3,8.77437]
[1725279004262,7.93127,2521.7,2521.3,8.77437]
[1725279004466,3.9659,2521.5,2521.3,7.9767]
[1725279005968,3.96605,2521.4,2521.3,7.9767]
[1725279006414,3.96605,2521.4,2521.0,3.0]
[1725279006588,3.96625,2521.3,2521.1,8.017]
[1725279006906,3.96605,2521.4,2521.2,3.0]
[1725279007065,3.9662,2521.3,2521.2,3.0]
[1725279007840,3.96605,2521.4,2521.2,3.0]
[1725279009372,3.96591,2521.5,2521.2,3.0]
[1725279010516,8.20704148,2521.8,2521.2,3.07932226]
[1725279010731,3.96527,2521.9,2521.4,7.5774]
[1725279011008,3.96508,2522.1,2521.6,7.5774]
[1725279011215,3.96557,2521.7,2521.6,27.3674]
[1725279011589,3.96531,2521.9,2521.6,27.3674]
[1725279011913,3.96549,2521.8,2521.6,27.3674]
[1725279012421,8.20700148,2521.8,2521.6,27.3674]
[1725279012769,3.96557,2521.7,2521.6,27.3674]
[1725279013703,7.93114,2521.7,2521.6,19.79]
[1725279014572,5.18283515,2521.7,2521.3,27.16]
[1725279014778,3.96592,2521.5,2521.3,27.16]
[1725279014988,3.96557,2521.7,2521.3,27.16]
[1725279015383,3.96543,2521.8,2521.4,0.07931888]
[1725279015789,3.96527,2521.9,2521.5,7.37]
[1725279016217,3.96527,2521.9,2521.6,7.37]
[1725279017016,7.93062,2521.9,2521.6,7.37]
[1725279017331,3.96527,2521.9,2521.6,7.37]
[1725279017539,3.96513,2522.0,2521.6,7.37]
[1725279017699,3.96528,2521.9,2521.6,7.37]
[1725279019104,3.96545,2521.8,2521.6,7.37]
[1725279019638,3.96557,2521.7,2521.6,7.37]
[1725279020900,8.20664148,2522.0,2521.4,27.1422]
[1725279021236,8.63079263,2522.0,2521.4,27.1422]
[1725279021437,3.96572,2521.7,2521.4,27.1422]
[1725279022519,3.96535,2521.9,2521.4,31.10818]
[1725279022753,0.75134,2522.3,2521.7,8.0242]
[1725279022754,8.20626148,2522.3,2521.7,8.0242]
[1725279022966,3.9648,2522.2,2521.8,7.62140179]
[1725279023447,3.9648,2522.2,2521.8,7.5421]
[1725279023615,7.92967,2522.2,2521.8,10.671859]
[1725279023816,3.9648,2522.2,2521.8,10.671859]
[1725279024545,8.20609148,2522.4,2521.9,11.37956]
[1725279024842,3.96473,2522.3,2522.1,7.4143]
[1725279025240,8.20609148,2522.4,2522.1,7.4143]
[1725279025442,12.17070148,2522.4,2522.1,7.4143]
[1725279026139,7.92919,2522.4,2522.1,7.4143]
[1725279026551,3.96466,2522.3,2522.1,7.4143]
[1725279027211,3.96439,2522.5,2522.1,27.2043]
[1725279027411,3.96449,2522.4,2522.1,27.2043]
[1725279027753,3.96459,2522.4,2522.1,27.2043]
[1725279027909,8.20630148,2522.2,2522.1,27.2043]
[1725279028522,3.96479,2522.2,2522.1,27.2043]
[1725279029344,12.17109148,2522.2,2522.1,19.79]
[1725279029845,16.13588148,2522.2,2522.1,19.79]
[1725279030045,18.50554963,2522.2,2522.1,19.79]
[1725279031521,18.50554963,2522.2,2521.6,7.6074]
[1725279031522,3.96557,2521.7,2521.6,19.79]
[1725279031858,3.96557,2521.7,2521.4,10.9877]
[1725279031859,7.93114,2521.7,2521.4,10.9877]
[1725279032035,3.96589,2521.5,2521.4,10.9877]
[1725279033255,3.96589,2521.5,2521.4,3.0]
[1725279033921,3.96605,2521.4,2521.3,7.39]
[1725279034742,3.96605,2521.4,2521.2,19.79]
[1725279035465,3.96605,2521.4,2521.1,7.334]
[1725279035466,3.96605,2521.4,2521.3,19.79]
[1725279035619,7.93223,2521.4,2521.3,19.79]
[1725279036520,7.93223,2521.4,2521.0,3.0]
[1725279036521,3.96652,2521.1,2521.0,27.1878]
[1725279036816,8.20790148,2521.2,2521.0,7.3978]
[1725279037023,3.96639,2521.2,2521.0,7.3978]
[1725279038377,8.20661148,2522.0,2521.0,7.62463026]
[1725279038378,3.96598,2521.5,2521.0,7.62463026]
[1725279038560,3.96598,2521.5,2521.0,11.59130026]
[1725279038732,3.96598,2521.5,2521.0,7.5453]
[1725279038733,3.96622,2521.3,2521.0,7.5453]
[1725279039058,3.96641,2521.2,2521.0,7.5453]
[1725279041057,3.96622,2521.3,2521.0,7.5453]
[1725279041423,3.96622,2521.3,2521.0,27.3353]
[1725279041764,8.20716148,2521.7,2521.1,11.77260986]
[1725279041989,3.96592,2521.5,2521.2,22.79]
[1725279042201,8.20743148,2521.5,2521.2,19.79]
[1725279042460,3.96605,2521.4,2521.2,19.79]
[1725279042617,3.9662,2521.3,2521.2,19.79]
[1725279043170,3.96606,2521.4,2521.2,19.79]
[1725279043337,12.17343148,2521.5,2521.2,19.79]
[1725279043534,3.96606,2521.4,2521.2,19.79]
[1725279044171,8.20744148,2521.5,2521.2,19.79]
[1725279044343,12.17346148,2521.5,2521.2,19.79]
[1725279045531,3.96607,2521.4,2521.2,19.79]
[1725279046570,8.20743148,2521.5,2521.2,19.79]
[1725279046785,12.17340148,2521.5,2521.2,19.79]
[1725279047062,8.20743148,2521.5,2521.2,19.79]
[1725279047290,12.17342148,2521.5,2521.2,19.79]
[1725279047785,8.20743148,2521.5,2521.2,19.79]
[1725279048340,12.17345148,2521.5,2521.2,19.79]